fUSD/lending_fUSD_20250628
["ID","MTS","AMOUNT","RATE_DAILY","PERIOD"]
[368247985,1751071877039,-490.0,0.00045479,60]
[368247986,1751071877048,-490.0,0.00045479,60]
[368247987,1751071877057,-632.81,0.00045479,60]
[368247988,1751071877067,-1381.52,0.00045479,60]
[368247989,1751071877076,-490.0,0.00045479,60]
[368247990,1751071877087,-821.19,0.00045479,60]
[368247991,1751071877096,-490.0,0.00045479,60]
[368247992,1751071877107,-504.18,0.00045479,60]
[368247993,1751071877118,-980.59,0.00045479,60]
[368247994,1751071877129,-490.0,0.00045479,60]
[368247995,1751071877139,-701.16,0.00045479,60]
[368247996,1751071877148,-490.0,0.00045479,60]
[368247997,1751071877158,-1101.82,0.00045479,60]
[368247998,1751071877167,-490.0,0.00045479,60]
[368247999,1751071877176,-490.0,0.00045479,60]
[368248000,1751071877186,-490.0,0.00045479,60]
[368248001,1751071877195,-492.8,0.00045479,60]
[368248002,1751071877206,-1389.59,0.00045479,60]
[368248003,1751071877217,-761.04,0.00045479,60]
[368248004,1751071877226,-2742.88,0.00045479,60]
[368248005,1751071877235,-3633.8,0.00045479,60]
[368248006,1751071877244,-631.21,0.00045479,60]
[368248007,1751071877254,-560.29,0.00045479,60]
[368248008,1751071877263,-1621.27,0.00045479,60]
[368248009,1751071877272,-490.0,0.00045479,60]
[368248010,1751071877282,-1119.72,0.00045479,60]
[368248011,1751071877292,-528.93,0.00045479,60]
[368248012,1751071877302,-1270.62,0.00045479,60]
[368248013,1751071877311,-1055.73,0.00045479,60]
[368248014,1751071877321,-490.0,0.00045479,60]
[368248015,1751071877330,-490.0,0.00045479,60]
[368248016,1751071877339,-490.0,0.00045479,60]
[368248017,1751071877348,-3883.34,0.00045479,60]
[368248018,1751071877358,-490.0,0.00045479,60]
[368248019,1751071877370,-881.48,0.00045479,60]
[368248020,1751071877379,-797.91,0.00045479,60]
[368248021,1751071877388,-490.0,0.00045479,60]
[368248022,1751071877398,-564.31,0.00045479,60]
[368248023,1751071877407,-960.84,0.00045479,60]
[368248024,1751071877417,-544.38,0.00045479,60]
[368248025,1751071877426,-819.67,0.00045479,60]
[368248026,1751071877436,-548.79,0.00045479,60]
[368248027,1751071877445,-490.0,0.00045479,60]
[368248028,1751071877454,-490.0,0.00045479,60]
[368248029,1751071877464,-490.0,0.00045479,60]
[368248030,1751071877474,-877.78,0.00045479,60]
[368248031,1751071877484,-519.68,0.00045479,60]
[368248032,1751071877494,-1100.02,0.00045479,60]
[368248033,1751071877504,-499.03,0.00045479,60]
[368248034,1751071877513,-1040.49,0.00045479,60]
[368248035,1751071877523,-185.80879448,0.00045479,60]
[368248036,1751071877533,-942.77,0.00045479,60]
[368248037,1751071877543,-953.56,0.00045479,60]
[368248038,1751071877554,-1086.04,0.00045479,60]
[368248039,1751071877567,-490.0,0.00045479,60]
[368248040,1751071877580,-6952.88,0.00045479,60]
[368248041,1751071877590,-531.35,0.00045479,60]
[368248042,1751071877600,-1825.19,0.00045479,60]
[368248043,1751071877609,-551.06,0.00045479,60]
[368248044,1751071877618,-490.0,0.00045479,60]
[368248045,1751071877628,-1040.65,0.00045479,60]
[368248046,1751071877638,-551.92,0.00045479,60]
[368248047,1751071877647,-1592.1,0.00045479,60]
[368248048,1751071877656,-990.34,0.00045479,60]
[368248049,1751071877666,-490.0,0.00045479,60]
[368248050,1751071877677,-490.0,0.00045479,60]
[368248051,1751071877686,-511.18,0.00045479,60]
[368248052,1751071877696,-660.58,0.00045479,60]
[368248053,1751071877706,-899.19,0.00045479,60]
[368248054,1751071877715,-490.0,0.00045479,60]
[368248055,1751071877724,-554.3,0.00045479,60]
[368248056,1751071877733,-548.05,0.00045479,60]
[368248057,1751071877743,-490.0,0.00045479,60]
[368248058,1751071877752,-490.0,0.00045479,60]
[368248059,1751071877761,-490.0,0.00045479,60]
[368248060,1751071877771,-116331.36,0.00045479,60]
[368248061,1751071877780,-490.0,0.00045479,60]
[368248062,1751071877790,-490.0,0.00045479,60]
[368248063,1751071877799,-774.82,0.00045479,60]
[368248064,1751071877808,-896.07,0.00045479,60]
[368248065,1751071877819,-787.73,0.00045479,60]
[368248066,1751071877829,-1205.17,0.00045479,60]
[368248067,1751071877838,-1755.56,0.00045479,60]
[368248068,1751071877847,-490.0,0.00045479,60]
[368248069,1751071877857,-490.0,0.00045479,60]
[368248070,1751071877866,-1776.88,0.00045479,60]
[368248071,1751071877875,-497.76,0.00045479,60]
[368248072,1751071877884,-490.0,0.00045479,60]
[368248073,1751071877893,-490.0,0.00045479,60]
[368248074,1751071877902,-490.0,0.00045479,60]
[368248075,1751071877912,-850.04,0.00045479,60]
[368248076,1751071877921,-490.0,0.00045479,60]
[368248077,1751071877931,-1470.22,0.00045479,60]
[368248078,1751071877940,-547.95,0.00045479,60]
[368248079,1751071877950,-490.0,0.00045479,60]
[368248080,1751071877959,-906.79,0.00045479,60]
[368248081,1751071877969,-656.99,0.00045479,60]
[368248082,1751071877979,-159.095478,0.00045479,60]
[368248083,1751071877988,-490.0,0.00045479,60]
[368248084,1751071877997,-561.17,0.00045479,60]
[368248085,1751071878007,-532.35,0.00045479,60]
[368248086,1751071878017,-2168.75,0.00045479,60]
[368248087,1751071878026,-1280.03,0.00045479,60]
[368248088,1751071878036,-490.0,0.00045479,60]
[368248089,1751071878045,-490.0,0.00045479,60]
[368248090,1751071878055,-558.63,0.00045479,60]
[368248091,1751071878064,-923.38,0.00045479,60]
[368248092,1751071878073,-490.0,0.00045479,60]
[368248093,1751071878083,-1132.38,0.00045479,60]
[368248094,1751071878093,-490.0,0.00045479,60]
[368248095,1751071878103,-681.77,0.00045479,60]
[368248096,1751071878112,-155.14179267,0.00045479,60]
[368248097,1751071878121,-490.0,0.00045479,60]
[368248098,1751071878131,-490.0,0.00045479,60]
[368248099,1751071878140,-1998.82,0.00045479,60]
[368248100,1751071878150,-668.11,0.00045479,60]
[368248101,1751071878160,-716.54,0.00045479,60]
[368248102,1751071878169,-633.4,0.00045479,60]
[368248103,1751071878178,-878.36,0.00045479,60]
[368248104,1751071878189,-490.0,0.00045479,60]
[368248105,1751071878198,-542.18,0.00045479,60]
[368248106,1751071878211,-1819.64,0.00045479,60]
[368248107,1751071878221,-490.0,0.00045479,60]
[368248108,1751071878232,-4700.89,0.00045479,60]
[368248109,1751071878242,-865.33,0.00045479,60]
[368248110,1751071878252,-742.7,0.00045479,60]
[368248111,1751071878262,-490.0,0.00045479,60]
[368248112,1751071878271,-490.0,0.00045479,60]
[368248113,1751071878280,-634.14,0.00045479,60]
[368248114,1751071878290,-301.3,0.00045479,60]
[368248115,1751071878299,-645.35,0.00045479,60]
[368248116,1751071878309,-1740.41,0.00045479,60]
[368248117,1751071878319,-490.0,0.00045479,60]
[368248118,1751071878329,-1968.42,0.00045479,14]
[368248119,1751071878339,-513.85,0.00045479,60]
[368248120,1751071878349,-2452.13,0.00045479,60]
[368248121,1751071878359,-490.0,0.00045479,60]
[368248122,1751071878369,-626.76,0.00045479,60]
[368248123,1751071878378,-654.89,0.00045479,60]
[368248124,1751071878388,-490.0,0.00045479,60]
[368248125,1751071878398,-763.1,0.00045479,60]
[368248126,1751071878408,-573.87,0.00045479,60]
[368248127,1751071878418,-948.87,0.00045479,60]
[368248128,1751071878428,-490.0,0.00045479,60]
[368248129,1751071878439,-490.0,0.00045479,60]
[368248130,1751071878448,-490.0,0.00045479,60]
[368248131,1751071878458,-538.32,0.00045479,60]
[368248132,1751071878468,-492.97,0.00045479,60]
[368248133,1751071878478,-490.0,0.00045479,60]
[368248134,1751071878488,-722.82,0.00045479,60]
[368248135,1751071878499,-1684.21,0.00045479,60]
[368248136,1751071878509,-490.0,0.00045479,60]
[368248137,1751071878519,-742.09,0.00045479,60]
[368248138,1751071878528,-490.0,0.00045479,60]
[368248139,1751071878538,-1592.37,0.00045479,60]
[368248140,1751071878548,-520.76,0.00045479,60]
[368248141,1751071878558,-490.0,0.00045479,60]
[368248142,1751071878567,-490.0,0.00045479,60]
[368248143,1751071878576,-1085.58,0.00045479,60]
[368248144,1751071878586,-592.17,0.00045479,60]
[368248145,1751071878595,-717.14,0.00045479,60]
[368248146,1751071878605,-588.68,0.00045479,60]
[368248147,1751071878614,-2828.04,0.00045479,60]
[368248148,1751071878624,-490.0,0.00045479,60]
[368248149,1751071878634,-2351.28,0.00045479,60]
[368248150,1751071878644,-490.0,0.00045479,60]
[368248151,1751071878654,-1128.63,0.00045479,60]
[368248152,1751071878664,-1000.0,0.00045479,60]
[368248153,1751071878674,-490.0,0.00045479,60]
[368248154,1751071878683,-150.0,0.0004549,2]
[368248155,1751071878693,-150.0,0.00045508,2]
[368248156,1751071878702,-150.0,0.00045542,2]
[368248157,1751071878712,-150.0,0.00045549,2]
[368248158,1751071878721,-9785.18177869,0.00045561,15]
[368248159,1751071878731,-2110.0,0.00045575,30]
[368248160,1751071878740,-285.6891283,0.00045581,2]
[368248161,1751071878750,-150.0,0.0004559,2]
[368248162,1751071878759,-168.0,0.00045622,2]
[368248163,1751071878769,-150.0,0.00045636,2]
[368248164,1751071878778,-500.0,0.00045644,30]
[368248165,1751071878788,-500.0,0.00045644,30]
[368248166,1751071878797,-500.0,0.00045644,30]
[368248167,1751071878807,-500.0,0.00045644,30]
[368248168,1751071878817,-500.0,0.00045644,30]
[368248169,1751071878826,-500.0,0.00045644,30]
[368248170,1751071878836,-500.0,0.00045644,30]
[368248171,1751071878846,-500.0,0.00045644,30]
[368248172,1751071878855,-168.84006856,0.00045644,30]
[368248173,1751071878864,-2066.534593,0.00045673,60]
[368248174,1751071878874,-200.0,0.00045673,120]
[368248175,1751071878883,-161.18,0.000457,44]
[368248176,1751071878892,-150.0,0.00045712,2]
[368248177,1751071879027,-150.0,0.00045727,2]
[368248178,1751071879038,-500.0,0.00045752,60]
[368248179,1751071879048,-579.48899973,0.00045752,120]
[368248180,1751071879058,-490.0,0.00045753,60]
[368248181,1751071879068,-490.0,0.00045753,60]
[368248182,1751071879077,-490.0,0.00045753,60]
[368248183,1751071879087,-490.0,0.00045753,60]
[368248184,1751071879096,-578.1515219,0.00045753,60]
[368248185,1751071879105,-490.0,0.00045753,60]
[368248186,1751071879115,-151.0,0.00045753,2]
[368248187,1751071879124,-490.0,0.00045753,60]
[368248188,1751071879133,-490.0,0.00045753,60]
[368248189,1751071879142,-490.0,0.00045753,60]
[368248190,1751071879151,-490.0,0.00045753,60]
[368248191,1751071879160,-490.0,0.00045753,60]
[368248192,1751071879170,-490.0,0.00045753,60]
[368248193,1751071879179,-632.98,0.00045753,60]
[368248194,1751071879188,-490.0,0.00045753,60]
[368248195,1751071879198,-594.52,0.00045753,60]
[368248196,1751071879211,-490.0,0.00045753,60]
[368248197,1751071879221,-490.0,0.00045753,60]
[368248198,1751071879231,-490.0,0.00045753,60]
[368248199,1751071879241,-490.0,0.00045753,60]
[368248200,1751071879252,-553.58,0.00045753,60]
[368248201,1751071879261,-508.58,0.00045753,60]
[368248202,1751071879271,-490.0,0.00045753,60]
[368248203,1751071879282,-490.0,0.00045753,60]
[368248204,1751071879291,-490.0,0.00045753,60]
[368248205,1751071879301,-490.0,0.00045753,60]
[368248206,1751071879310,-490.0,0.00045753,60]
[368248207,1751071879319,-490.0,0.00045753,60]
[368248208,1751071879328,-490.0,0.00045753,60]
[368248209,1751071879338,-490.0,0.00045753,60]
[368248210,1751071879347,-490.0,0.00045753,60]
[368248211,1751071879356,-656.12,0.00045753,2]
[368248212,1751071879365,-490.0,0.00045753,60]
[368248213,1751071879375,-490.0,0.00045753,60]
[368248214,1751071879385,-510.76,0.00045753,60]
[368248215,1751071879394,-490.0,0.00045753,60]
[368248216,1751071879404,-687.24,0.00045753,60]
[368248217,1751071879414,-490.0,0.00045753,60]
[368248218,1751071879424,-490.0,0.00045753,60]
[368248219,1751071879435,-490.0,0.00045753,60]
[368248220,1751071879447,-490.0,0.00045753,60]
[368248221,1751071879457,-490.0,0.00045753,60]
[368248222,1751071879466,-490.0,0.00045753,60]
[368248223,1751071879476,-490.0,0.00045753,60]
[368248224,1751071879486,-490.0,0.00045753,60]
[368248225,1751071879496,-521.83,0.00045753,60]
[368248226,1751071879505,-1241.16,0.00045753,60]
[368248227,1751071879515,-582.78,0.00045753,60]
[368248228,1751071879524,-490.0,0.00045753,60]
[368248229,1751071879534,-779.72,0.00045753,60]
[368248230,1751071879544,-490.0,0.00045753,60]
[368248231,1751071879554,-500.0,0.00045753,120]
[368248232,1751071879564,-490.0,0.00045753,60]
[368248233,1751071879574,-448.8,0.00045753,60]
[368248234,1751071879584,-216.36,0.00045753,60]
[368248235,1751071879593,-490.0,0.00045753,60]
[368248236,1751071879603,-597.71,0.00045753,60]
[368248237,1751071879612,-490.0,0.00045753,60]
[368248238,1751071879622,-490.0,0.00045753,60]
[368248239,1751071879631,-490.0,0.00045753,60]
[368248240,1751071879640,-156.106223,0.00045753,60]
[368248241,1751071879650,-696.1,0.00045753,60]
[368248242,1751071879660,-490.0,0.00045753,60]
[368248243,1751071879670,-490.0,0.00045753,60]
[368248244,1751071879679,-490.0,0.00045753,60]
[368248245,1751071879689,-490.0,0.00045753,60]
[368248246,1751071879699,-154.28143,0.00045753,60]
[368248247,1751071879708,-490.0,0.00045753,60]
[368248248,1751071879718,-329.18,0.00045753,60]
[368248249,1751071879727,-490.0,0.00045753,60]
[368248250,1751071879736,-490.0,0.00045753,60]
[368248251,1751071879745,-490.0,0.00045753,60]
[368248252,1751071879755,-181.17491111,0.00045753,60]
[368248253,1751071879764,-490.0,0.00045753,60]
[368248254,1751071879774,-179.564808,0.00045753,60]
[368248255,1751071879783,-721.73,0.00045753,60]
[368248256,1751071879793,-490.0,0.00045753,60]
[368248257,1751071879802,-490.0,0.00045753,60]
[368248258,1751071879812,-490.0,0.00045753,60]
[368248259,1751071879823,-490.0,0.00045753,60]
[368248260,1751071879834,-490.0,0.00045753,60]
[368248261,1751071879843,-490.0,0.00045753,60]
[368248262,1751071879854,-490.0,0.00045753,60]
[368248263,1751071879863,-958.32,0.00045753,60]
[368248264,1751071879873,-490.0,0.00045753,60]
[368248265,1751071879882,-490.0,0.00045753,60]
[368248266,1751071879892,-490.0,0.00045753,60]
[368248267,1751071879901,-507.37,0.00045753,60]
[368248268,1751071879913,-490.0,0.00045753,60]
[368248269,1751071879922,-490.0,0.00045753,60]
[368248270,1751071879931,-312.35362671,0.00045753,60]
[368248271,1751071879941,-743.38,0.00045753,60]
[368248272,1751071879952,-526.08,0.00045753,60]
[368248273,1751071879963,-490.0,0.00045753,60]
[368248274,1751071879973,-490.0,0.00045753,60]
[368248275,1751071879984,-1492.54,0.00045753,60]
[368248276,1751071879994,-519.17,0.00045753,60]
[368248277,1751071880003,-490.0,0.00045753,60]
[368248278,1751071880013,-490.0,0.00045753,60]
[368248279,1751071880022,-490.0,0.00045753,60]
[368248280,1751071880031,-490.0,0.00045753,60]
[368248281,1751071880041,-490.0,0.00045753,60]
[368248282,1751071880051,-490.0,0.00045753,60]
[368248283,1751071880061,-490.0,0.00045753,60]
[368248284,1751071880070,-490.0,0.00045753,60]
[368248285,1751071880079,-490.0,0.00045753,60]
[368248286,1751071880089,-490.0,0.00045753,60]
[368248287,1751071880098,-490.0,0.00045753,60]
[368248288,1751071880108,-490.0,0.00045753,60]
[368248289,1751071880118,-570.52,0.00045753,60]
[368248290,1751071880127,-384.71,0.00045753,60]
[368248291,1751071880136,-165.936069,0.00045753,60]
[368248292,1751071880146,-490.0,0.00045753,60]
[368248293,1751071880155,-490.0,0.00045753,60]
[368248294,1751071880165,-666.63,0.00045753,60]
[368248295,1751071880175,-920.83,0.00045753,60]
[368248296,1751071880185,-490.0,0.00045753,60]
[368248297,1751071880195,-1154.84,0.00045753,60]
[368248298,1751071880208,-490.0,0.00045753,60]
[368248299,1751071880219,-733.75,0.00045753,60]
[368248300,1751071880229,-519.13,0.00045753,60]
[368248301,1751071880239,-490.0,0.00045753,60]
[368248302,1751071880249,-1054.47,0.00045753,60]
[368248303,1751071880259,-490.0,0.00045753,60]
[368248304,1751071880269,-490.0,0.00045753,60]
[368248305,1751071880279,-490.0,0.00045753,60]
[368248306,1751071880289,-741.5,0.00045753,60]
[368248307,1751071880299,-490.0,0.00045753,60]
[368248308,1751071880308,-526.74,0.00045753,60]
[368248309,1751071880319,-513.84,0.00045753,60]
[368248310,1751071880330,-182.94,0.00045753,60]
[368248311,1751071880340,-1040.12,0.00045753,60]
[368248312,1751071880351,-292.44,0.00045753,60]
[368248313,1751071880360,-555.78,0.00045753,60]
[368248314,1751071880371,-490.0,0.00045753,60]
[368248315,1751071880381,-3283.31,0.00045753,60]
[368248316,1751071880391,-490.0,0.00045753,60]
[368248317,1751071880401,-490.0,0.00045753,60]
[368248318,1751071880412,-858.82,0.00045753,60]
[368248319,1751071880422,-490.0,0.00045753,60]
[368248320,1751071880433,-744.08,0.00045753,60]
[368248321,1751071880444,-490.0,0.00045753,60]
[368248322,1751071880454,-490.0,0.00045753,60]
[368248323,1751071880464,-1463.6,0.00045753,60]
[368248324,1751071880475,-504.68,0.00045753,60]
[368248325,1751071880486,-848.47,0.00045753,60]
[368248326,1751071880497,-490.0,0.00045753,60]
[368248327,1751071880508,-490.0,0.00045753,60]
[368248328,1751071880518,-632.81,0.00045753,60]
[368248329,1751071880529,-1381.52,0.00045753,60]
[368248330,1751071880540,-490.0,0.00045753,60]
[368248331,1751071880551,-821.19,0.00045753,60]
[368248332,1751071880562,-490.0,0.00045753,60]
[368248333,1751071880572,-504.18,0.00045753,60]
[368248334,1751071880582,-980.59,0.00045753,60]
[368248335,1751071880592,-490.0,0.00045753,60]
[368248336,1751071880603,-701.16,0.00045753,60]
[368248337,1751071880613,-490.0,0.00045753,60]
[368248338,1751071880623,-1101.82,0.00045753,60]
[368248339,1751071880633,-490.0,0.00045753,60]
[368248340,1751071880643,-490.0,0.00045753,60]
[368248341,1751071880653,-490.0,0.00045753,60]
[368248342,1751071880663,-492.8,0.00045753,60]
[368248343,1751071880673,-1389.59,0.00045753,60]
[368248344,1751071880683,-761.04,0.00045753,60]
[368248345,1751071880693,-2742.88,0.00045753,60]
[368248346,1751071880706,-3633.8,0.00045753,60]
[368248347,1751071880715,-631.21,0.00045753,60]
[368248348,1751071880726,-560.29,0.00045753,60]
[368248349,1751071880736,-1621.27,0.00045753,60]
[368248350,1751071880746,-490.0,0.00045753,60]
[368248351,1751071880760,-1119.72,0.00045753,60]
[368248352,1751071880772,-528.93,0.00045753,60]
[368248353,1751071880783,-1270.62,0.00045753,60]
[368248354,1751071880794,-1055.73,0.00045753,60]
[368248355,1751071880805,-490.0,0.00045753,60]
[368248356,1751071880815,-490.0,0.00045753,60]
[368248357,1751071880827,-490.0,0.00045753,60]
[368248358,1751071880838,-3883.34,0.00045753,60]
[368248359,1751071880849,-211.22253671,0.00045753,60]
[368248360,1751071880859,-881.48,0.00045753,60]
[368248361,1751071880870,-797.91,0.00045753,60]
[368248362,1751071880880,-490.0,0.00045753,60]
[368248363,1751071880891,-564.31,0.00045753,60]
[368248364,1751071880904,-960.84,0.00045753,60]
[368248365,1751071880914,-544.38,0.00045753,60]
[368248366,1751071880925,-819.67,0.00045753,60]
[368248367,1751071880935,-548.79,0.00045753,60]
[368248368,1751071880945,-490.0,0.00045753,60]
[368248369,1751071880956,-490.0,0.00045753,60]
[368248370,1751071880967,-490.0,0.00045753,60]
[368248371,1751071880978,-877.78,0.00045753,60]
[368248372,1751071880989,-519.68,0.00045753,60]
[368248373,1751071880998,-499.03,0.00045753,60]
[368248374,1751071881008,-1100.02,0.00045753,60]
[368248375,1751071881017,-1040.49,0.00045753,60]
[368248376,1751071881027,-942.77,0.00045753,60]
[368248377,1751071881037,-953.56,0.00045753,60]
[368248378,1751071881051,-1086.04,0.00045753,60]
[368248379,1751071881062,-490.0,0.00045753,60]
[368248380,1751071881072,-6952.88,0.00045753,60]
[368248381,1751071881082,-531.35,0.00045753,60]
[368248382,1751071881092,-1825.19,0.00045753,60]
[368248383,1751071881101,-551.06,0.00045753,60]
[368248384,1751071881111,-490.0,0.00045753,60]
[368248385,1751071881121,-1040.65,0.00045753,60]
[368248386,1751071881132,-551.92,0.00045753,60]
[368248387,1751071881142,-1592.1,0.00045753,60]
[368248388,1751071881152,-990.34,0.00045753,60]
[368248389,1751071881162,-490.0,0.00045753,60]
[368248390,1751071881171,-222.32,0.00045753,60]
[368248391,1751071881181,-511.18,0.00045753,60]
[368248392,1751071881191,-660.58,0.00045753,60]
[368248393,1751071881201,-899.19,0.00045753,60]
[368248394,1751071881215,-490.0,0.00045753,60]
[368248395,1751071881225,-554.3,0.00045753,60]
[368248396,1751071881235,-548.05,0.00045753,60]
[368248397,1751071881244,-490.0,0.00045753,60]
[368248398,1751071881255,-490.0,0.00045753,60]
[368248399,1751071881264,-490.0,0.00045753,60]
[368248400,1751071881274,-490.0,0.00045753,60]
[368248401,1751071881283,-116331.36,0.00045753,60]
[368248402,1751071881293,-490.0,0.00045753,60]
[368248403,1751071881302,-774.82,0.00045753,60]
[368248404,1751071881312,-896.07,0.00045753,60]
[368248405,1751071881322,-787.73,0.00045753,60]
[368248406,1751071881498,-1205.17,0.00045753,60]
[368248407,1751071881509,-1755.56,0.00045753,60]
[368248408,1751071881518,-490.0,0.00045753,60]
[368248409,1751071881527,-490.0,0.00045753,60]
[368248410,1751071881536,-1776.88,0.00045753,60]
[368248411,1751071881546,-497.76,0.00045753,60]
[368248412,1751071881556,-490.0,0.00045753,60]
[368248413,1751071881565,-490.0,0.00045753,60]
[368248414,1751071881574,-405.18,0.00045753,60]
[368248415,1751071881584,-850.04,0.00045753,60]
[368248416,1751071881594,-490.0,0.00045753,60]
[368248417,1751071881604,-1470.22,0.00045753,60]
[368248418,1751071881613,-547.95,0.00045753,60]
[368248419,1751071881623,-490.0,0.00045753,60]
[368248420,1751071881633,-906.79,0.00045753,60]
[368248421,1751071881643,-656.99,0.00045753,60]
[368248422,1751071881654,-490.0,0.00045753,60]
[368248423,1751071881664,-561.17,0.00045753,60]
[368248424,1751071881674,-532.35,0.00045753,60]
[368248425,1751071881683,-2168.75,0.00045753,60]
[368248426,1751071881693,-1280.03,0.00045753,60]
[368248427,1751071881702,-490.0,0.00045753,60]
[368248428,1751071881712,-490.0,0.00045753,60]
[368248429,1751071881721,-558.63,0.00045753,60]
[368248430,1751071881730,-923.38,0.00045753,60]
[368248431,1751071881740,-165.936068,0.00045753,60]
[368248432,1751071881751,-490.0,0.00045753,60]
[368248433,1751071881762,-1132.38,0.00045753,60]
[368248434,1751071881771,-490.0,0.00045753,60]
[368248435,1751071881780,-681.77,0.00045753,60]
[368248436,1751071881790,-490.0,0.00045753,60]
[368248437,1751071881798,-490.0,0.00045753,60]
[368248438,1751071881807,-1998.82,0.00045753,60]
[368248439,1751071881817,-668.11,0.00045753,60]
[368248440,1751071881826,-716.54,0.00045753,60]
[368248441,1751071881835,-633.4,0.00045753,60]
[368248442,1751071881845,-490.0,0.00045753,60]
[368248443,1751071881854,-878.36,0.00045753,60]
[368248444,1751071881863,-1819.64,0.00045753,60]
[368248445,1751071881873,-4700.89,0.00045753,60]
[368248446,1751071881883,-490.0,0.00045753,60]
[368248447,1751071881892,-865.33,0.00045753,60]
[368248448,1751071881901,-742.7,0.00045753,60]
[368248449,1751071881911,-490.0,0.00045753,60]
[368248450,1751071881920,-490.0,0.00045753,60]
[368248451,1751071881929,-634.14,0.00045753,60]
[368248452,1751071881938,-645.35,0.00045753,60]
[368248453,1751071881947,-1740.41,0.00045753,60]
[368248454,1751071881956,-490.0,0.00045753,60]
[368248455,1751071881965,-1968.42,0.00045753,14]
[368248456,1751071881975,-513.85,0.00045753,60]
[368248457,1751071881984,-490.0,0.00045753,60]
[368248458,1751071881993,-2452.13,0.00045753,60]
[368248459,1751071882003,-654.89,0.00045753,60]
[368248460,1751071882012,-763.1,0.00045753,60]
[368248461,1751071882021,-573.87,0.00045753,60]
[368248462,1751071882031,-948.87,0.00045753,60]
[368248463,1751071882040,-490.0,0.00045753,60]
[368248464,1751071882049,-538.32,0.00045753,60]
[368248465,1751071882058,-492.97,0.00045753,60]
[368248466,1751071882067,-490.0,0.00045753,60]
[368248467,1751071882076,-490.0,0.00045753,60]
[368248468,1751071882085,-722.82,0.00045753,60]
[368248469,1751071882095,-490.0,0.00045753,60]
[368248470,1751071882104,-742.09,0.00045753,60]
[368248471,1751071882113,-1684.21,0.00045753,60]
[368248472,1751071882123,-490.0,0.00045753,60]
[368248473,1751071882132,-1592.37,0.00045753,60]
[368248474,1751071882141,-520.76,0.00045753,60]
[368248475,1751071882150,-490.0,0.00045753,60]
[368248476,1751071882159,-490.0,0.00045753,60]
[368248477,1751071882168,-1085.58,0.00045753,60]
[368248478,1751071882177,-592.17,0.00045753,60]
[368248479,1751071882186,-717.14,0.00045753,60]
[368248480,1751071882195,-588.68,0.00045753,60]
[368248481,1751071882207,-2828.04,0.00045753,60]
[368248482,1751071882217,-490.0,0.00045753,60]
[368248483,1751071882227,-2351.28,0.00045753,60]
[368248484,1751071882237,-490.0,0.00045753,60]